Workbook

Sheet 成绩表
A1: 安庆皖江高科技投资发展有限公司2023年第一批招聘工作人员总成绩表
A2: 序号 | B2: 职位名称 | C2: 职位代码 | D2: 姓名 | E2: 身份证号 | F2: 准考证号 | G2: 笔试成绩 | H2: 面试成绩 | I2: 实操成绩 | J2: 综合成绩 | K2: 备注
A3: 1 | B3: 投资岗 | C3: GK001 | D3: 王* | E3: 340802********0417 | F3: 052001GK001002 | G3: 69.4 | H3: 72.4 | I3: / | J3: =G3*0.4+H3*0.6 -> 71.2
A4: 2 | B4: 融资岗 | C4: GK002 | D4: 杨* | E4: 340811********5833 | F4: 052001GK002005 | G4: 60.8 | H4: 75 | I4: / | J4: =G4*0.4+H4*0.6 -> 69.32
A5: 3 | C5: GK002 | D5: 徐* | E5: 340824********3013 | F5: 052001GK002007 | G5: 66.2 | H5: 69 | I5: / | J5: =G5*0.4+H5*0.6 -> 67.88
A6: 4 | B6: 工程主管 | C6: JS001 | D6: 闵* | E6: 341222********8515 | F6: 052002JS001005 | G6: 77.2 | H6: 77.8 | I6: 82.6 | J6: =G6*0.3+H6*0.3+I6*0.4 -> 79.54
A7: 5 | C7: JS001 | D7: 杨*武 | E7: 340811********4213 | F7: 052002JS001018 | G7: 79.6 | H7: 80.8 | I7: 77.8 | J7: 79.24
A8: 6 | C8: JS001 | D8: 章*涛 | E8: 340823********2118 | F8: 052002JS001016 | G8: 75.2 | H8: 73.9 | I8: 81.2 | J8: 77.21
A9: 7 | C9: JS001 | D9: 王* | E9: 340811********5814 | F9: 052002JS001001 | G9: 71.6 | H9: 77.6 | I9: 75.4 | J9: 74.92
A10: 8 | C10: JS001 | D10: 程* | E10: 340102********2035 | F10: 052002JS001009 | G10: 71.8 | H10: 77.2 | I10: 71.4 | J10: 73.26
A11: 9 | C11: JS001 | D11: 王* | E11: 340802********0416 | F11: 052002JS001006 | G11: 71.8 | H11: 74.4 | I11: 0 | J11: 43.86 | K11: 实操自愿放弃
A12: 10 | B12: 工程主管 | C12: JS002 | D12: 汪*盼 | E12: 340825********3736 | F12: 052002JS002020 | G12: 71.8 | H12: 82 | I12: 81.4 | J12: 78.7
A13: 11 | C13: JS002 | D13: 任*隆 | E13: 340827********2312 | F13: 052002JS002022 | G13: 69.2 | H13: 74.2 | I13: 74.4 | J13: 72.78
A14: 12 | C14: JS002 | D14: 吴*程 | E14: 340823********2935 | F14: 052002JS002021 | G14: 68 | H14: 72.8 | I14: 72.4 | J14: 71.2
A15: 13 | B15: 质量主管 | C15: JS003 | D15: 谢*雯 | E15: 340822********0228 | F15: 052001JS003008 | G15: 63 | H15: 78.8 | I15: 75.2 | J15: 72.62
A16: 14 | C16: JS003 | D16: 江*源 | E16: 340823********211x | F16: 052001JS003009 | G16: 66.4 | H16: 0 | I16: 0 | J16: =I16*0.4+H16*0.3+G16*0.3 -> 19.92 | K16: 面试自愿放弃
A17: 15 | B17: 质量主管 | C17: JS004 | D17: 李*林 | E17: 340824********0830 | F17: 052002JS004023 | G17: 68.6 | H17: 75.4 | I17: 0 | J17: =G17*0.3+H17*0.3+I17*0.4 -> 43.2 | K17: 实操自愿放弃
A18: 16 | B18: 安环主管 | C18: JS005 | D18: 杨*帅 | E18: 342201********6235 | F18: 052001JS005014 | G18: 71.4 | H18: 79.2 | I18: 82 | J18: =G18*0.3+H18*0.3+I18*0.4 -> 77.98
A19: 17 | B19: 市场拓展专员 | C19: JS006 | D19: 张*梅 | E19: 340803********2784 | F19: 052001JS006015 | G19: 70.8 | H19: 68.4 | I19: / | J19: =G19*0.4+H19*0.6 -> 69.36 | K19: 面试成绩低于70分，无法进入下一环节
A20: 18 | B20: 造价主管 | C20: JS007 | D20: 姚*冬 | E20: 340802********0020 | F20: 052001JS007024 | G20: 69.6 | H20: 80.6 | I20: / | J20: =G20*0.4+H20*0.6 -> 76.2
A21: 19 | C21: JS007 | D21: 张* | E21: 340811********4753 | F21: 052001JS007016 | G21: 68.8 | H21: 79.1 | I21: / | J21: =G21*0.4+H21*0.6 -> 74.98
A22: 20 | C22: JS007 | D22: 杨*婷 | E22: 340822********4829 | F22: 052001JS007021 | G22: 67.2 | H22: 73.4 | I22: / | J22: =G22*0.4+H22*0.6 -> 70.92
